{"text_format":"1","workbook":"xlsx","n_sheets":5,"sheets":["Регистрация","Кроссворд","Анализ_1","Анализ_2","Результат"],"not_rendered":{"charts":0,"images":9,"macros":1,"external_links":0,"defined_names":0,"comments":1,"pivot_tables":0},"unopened":[],"bounds":{"document_bytes":16777216,"sheet_cells":100000,"rows_first":2000,"rows_last":500,"rows_between":2000,"halvings":0,"cell_chars":16384,"cell_head_chars":4096},"cells_cut":0,"cells_raw":0,"read":"whole","date_system":"1900"}

{"sheet":"Регистрация","index":0,"n_rows":8,"n_cols":9,"rows_kept":8,"cut":false,"hidden":false,"merged":[[1,3,1,4]]}
[]
[null,null,null,"Регистрация"]
[]
[null,null,null,"Фамилия"]
[null,null,null,"Имя"]
[null,null,null,"Класс"]
[]
[null,null,null,null,null,null,null,null,"Далее"]

{"sheet":"Кроссворд","index":1,"n_rows":25,"n_cols":16,"rows_kept":25,"cut":false,"hidden":false,"merged":[[24,15,24,19],[0,7,0,13]]}
[null,null,null,null,null,null,null,"Кроссворд"]
[]
[]
[]
[]
[]
[]
[]
[]
[]
[]
[]
[]
[]
[]
[]
[]
[]
[]
[]
[]
[]
[]
[]
[null,null,null,null,null,null,null,null,null,null,null,null,null,null,null,"Узнать результат"]

{"sheet":"Анализ_1","index":2,"n_rows":19,"n_cols":21,"rows_kept":19,"cut":false,"hidden":true,"merged":[[25,14,25,17],[26,14,26,17],[0,4,0,5]]}
[null,null,null,null,"Анализ"]
[]
[null,null,null,"№ задания","Ответ","Правильный ответ","Баллы"]
[null,null,null,1,{"$f":"CONCATENATE(Кроссворд!G4,Кроссворд!H4,Кроссворд!I4,Кроссворд!J4,Кроссворд!K4,Кроссворд!L4,Кроссворд!M4,Кроссворд!N4,Кроссворд!O4,Кроссворд!P4,Кроссворд!Q4)","v":""},"Доступность",{"$f":"IF(E4=F4,1,0)","v":0}]
[null,null,null,2,{"$f":"CONCATENATE(Кроссворд!K4,Кроссворд!K5,Кроссворд!K6,Кроссворд!K7,Кроссворд!K8,Кроссворд!K9)","v":""},"Угроза",{"$f":"IF(E5=F5,1,0)","v":0},null,null,"Правильно",{"$f":"SUM(G4:G13)","v":0}]
[null,null,null,3,{"$f":"CONCATENATE(Кроссворд!F9,Кроссворд!G9,Кроссворд!H9,Кроссворд!I9,Кроссворд!J9,Кроссворд!K9)","v":""},"Защита",0,null,null,"Оценка",{"$f":"IF(K5>8,5,IF(K5>6,4,IF(K5>4,3,2)))","v":2}]
[null,null,null,4,{"$f":"CONCATENATE(Кроссворд!I7,Кроссворд!I8,Кроссворд!I9,Кроссворд!I10,Кроссворд!I11,Кроссворд!I12,Кроссворд!I13,Кроссворд!I14,Кроссворд!I15,Кроссворд!I16,Кроссворд!I17)","v":""},"Криптология",0]
[null,null,null,5,{"$f":"CONCATENATE(Кроссворд!G11,Кроссворд!H11,Кроссворд!I11,Кроссворд!J11,Кроссворд!K11,Кроссворд!L11,Кроссворд!M11,Кроссворд!N11,Кроссворд!O11)","v":""},"Антивирус",0]
[null,null,null,6,{"$f":"CONCATENATE(Кроссворд!M7,Кроссворд!M8,Кроссворд!M9,Кроссворд!M10,Кроссворд!M11,Кроссворд!M12,Кроссворд!M13,Кроссворд!M14,Кроссворд!M15,Кроссворд!M16)","v":""},"Информация",0]
[null,null,null,7,{"$f":"CONCATENATE(Кроссворд!O7,Кроссворд!O8,Кроссворд!O9,Кроссворд!O10,Кроссворд!O11)","v":""},"Вирус",0]
[null,null,null,8,{"$f":"CONCATENATE(Кроссворд!K11,Кроссворд!K12,Кроссворд!K13,Кроссворд!K14,Кроссворд!K15,Кроссворд!K16,Кроссворд!K17,Кроссворд!K18,Кроссворд!K19,Кроссворд!K20,Кроссворд!K21)","v":""},"Верификация",0]
[null,null,null,9,{"$f":"CONCATENATE(Кроссворд!C19,Кроссворд!D19,Кроссворд!E19,Кроссворд!F19,Кроссворд!G19,Кроссворд!H19,Кроссворд!I19,Кроссворд!J19,Кроссворд!K19,Кроссворд!L19,Кроссворд!M19,Кроссворд!N19,Кроссворд!O19,Кроссворд!P19,Кроссворд!Q19,Кроссворд!R19,Кроссворд!S19,Кроссворд!T19)","v":""},"Конфиденциальность",0]
[null,null,null,10,{"$f":"CONCATENATE(Кроссворд!Q16,Кроссворд!Q17,Кроссворд!Q18,Кроссворд!Q19,Кроссворд!Q20,Кроссворд!Q21)","v":""},"Пароль",0]
[]
[]
[]
[]
[]
[null,null,null,null,null,null,null,null,null,null,null,null,null,null,null,null,null,null,null,{"$f":"IF(Кроссворд!T19=#REF!,1,0)","v":{"$error":"#REF!"}},{"$f":"IF(Кроссворд!U19=#REF!,1,0)","v":{"$error":"#REF!"}}]

{"sheet":"Анализ_2","index":3,"n_rows":25,"n_cols":41,"rows_kept":25,"cut":false,"hidden":true,"merged":[[0,7,0,12],[0,29,0,34],[24,16,24,20],[23,16,23,20],[23,21,23,22],[24,21,24,22]]}
[null,null,null,null,null,null,null,"Ответы",null,null,null,null,null,null,null,null,null,null,null,null,null,null,null,null,null,null,null,null,null,"Анализ"]
[]
[]
[null,null,null,null,null,null,"Д","О","С","Т","У","П","Н","О","С","Т","Ь",null,null,null,null,null,null,null,null,null,null,{"$f":"IF(Кроссворд!G4=Анализ_2!G4,1,0)","v":0},{"$f":"IF(Кроссворд!H4=Анализ_2!H4,1,0)","v":0},{"$f":"IF(Кроссворд!I4=Анализ_2!I4,1,0)","v":0},{"$f":"IF(Кроссворд!J4=Анализ_2!J4,1,0)","v":0},{"$f":"IF(Кроссворд!K4=Анализ_2!K4,1,0)","v":0},{"$f":"IF(Кроссворд!L4=Анализ_2!L4,1,0)","v":0},{"$f":"IF(Кроссворд!M4=Анализ_2!M4,1,0)","v":0},{"$f":"IF(Кроссворд!N4=Анализ_2!N4,1,0)","v":0},{"$f":"IF(Кроссворд!O4=Анализ_2!O4,1,0)","v":0},{"$f":"IF(Кроссворд!P4=Анализ_2!P4,1,0)","v":0},{"$f":"IF(Кроссворд!Q4=Анализ_2!Q4,1,0)","v":0}]
[null,null,null,null,null,null,null,null,null,null,"Г",null,null,null,null,null,null,null,null,null,null,null,null,null,null,null,null,null,null,null,null,{"$f":"IF(Кроссворд!K5=Анализ_2!K5,1,0)","v":0}]
[null,null,null,null,null,null,null,null,null,null,"Р",null,null,null,null,null,null,null,null,null,null,null,null,null,null,null,null,null,null,null,null,{"$f":"IF(Кроссворд!K6=Анализ_2!K6,1,0)","v":0}]
[null,null,null,null,null,null,null,null,"К",null,"О",null,"И",null,"В",null,null,null,null,null,null,null,null,null,null,null,null,null,null,{"$f":"IF(Кроссворд!I7=Анализ_2!I7,1,0)","v":0},null,{"$f":"IF(Кроссворд!K7=Анализ_2!K7,1,0)","v":0},null,{"$f":"IF(Кроссворд!M7=Анализ_2!M7,1,0)","v":0},null,{"$f":"IF(Кроссворд!O7=Анализ_2!O7,1,0)","v":0}]
[null,null,null,null,null,null,null,null,"Р",null,"З",null,"Н",null,"И",null,null,null,null,null,null,null,null,null,null,null,null,null,null,{"$f":"IF(Кроссворд!I8=Анализ_2!I8,1,0)","v":0},null,{"$f":"IF(Кроссворд!K8=Анализ_2!K8,1,0)","v":0},null,{"$f":"IF(Кроссворд!M8=Анализ_2!M8,1,0)","v":0},null,{"$f":"IF(Кроссворд!O8=Анализ_2!O8,1,0)","v":0}]
[null,null,null,null,null,"З","А","Щ","И","Т","А",null,"Ф",null,"Р",null,null,null,null,null,null,null,null,null,null,null,{"$f":"IF(Кроссворд!F9=Анализ_2!F9,1,0)","v":0},{"$f":"IF(Кроссворд!G9=Анализ_2!G9,1,0)","v":0},{"$f":"IF(Кроссворд!H9=Анализ_2!H9,1,0)","v":0},{"$f":"IF(Кроссворд!I9=Анализ_2!I9,1,0)","v":0},{"$f":"IF(Кроссворд!J9=Анализ_2!J9,1,0)","v":0},{"$f":"IF(Кроссворд!K9=Анализ_2!K9,1,0)","v":0},null,{"$f":"IF(Кроссворд!M9=Анализ_2!M9,1,0)","v":0},null,{"$f":"IF(Кроссворд!O9=Анализ_2!O9,1,0)","v":0}]
[null,null,null,null,null,null,null,null,"П",null,null,null,"О",null,"У",null,null,null,null,null,null,null,null,null,null,null,null,null,null,{"$f":"IF(Кроссворд!I10=Анализ_2!I10,1,0)","v":0},null,null,null,{"$f":"IF(Кроссворд!M10=Анализ_2!M10,1,0)","v":0},null,{"$f":"IF(Кроссворд!O10=Анализ_2!O10,1,0)","v":0}]
[null,null,null,null,null,null,"А","Н","Т","И","В","И","Р","У","С",null,null,null,null,null,null,null,null,null,null,null,null,{"$f":"IF(Кроссворд!G11=Анализ_2!G11,1,0)","v":0},{"$f":"IF(Кроссворд!H11=Анализ_2!H11,1,0)","v":0},{"$f":"IF(Кроссворд!I11=Анализ_2!I11,1,0)","v":0},{"$f":"IF(Кроссворд!J11=Анализ_2!J11,1,0)","v":0},{"$f":"IF(Кроссворд!K11=Анализ_2!K11,1,0)","v":0},{"$f":"IF(Кроссворд!L11=Анализ_2!L11,1,0)","v":0},{"$f":"IF(Кроссворд!M11=Анализ_2!M11,1,0)","v":0},{"$f":"IF(Кроссворд!N11=Анализ_2!N11,1,0)","v":0},{"$f":"IF(Кроссворд!O11=Анализ_2!O11,1,0)","v":0}]
[null,null,null,null,null,null,null,null,"О",null,"Е",null,"М",null,null,null,null,null,null,null,null,null,null,null,null,null,null,null,null,{"$f":"IF(Кроссворд!I12=Анализ_2!I12,1,0)","v":0},null,{"$f":"IF(Кроссворд!K12=Анализ_2!K12,1,0)","v":0},null,{"$f":"IF(Кроссворд!M12=Анализ_2!M12,1,0)","v":0}]
[null,null,null,null,null,null,null,null,"Л",null,"Р",null,"А",null,null,null,null,null,null,null,null,null,null,null,null,null,null,null,null,{"$f":"IF(Кроссворд!I13=Анализ_2!I13,1,0)","v":0},null,{"$f":"IF(Кроссворд!K13=Анализ_2!K13,1,0)","v":0},null,{"$f":"IF(Кроссворд!M13=Анализ_2!M13,1,0)","v":0}]
[null,null,null,null,null,null,null,null,"О",null,"И",null,"Ц",null,null,null,null,null,null,null,null,null,null,null,null,null,null,null,null,{"$f":"IF(Кроссворд!I14=Анализ_2!I14,1,0)","v":0},null,{"$f":"IF(Кроссворд!K14=Анализ_2!K14,1,0)","v":0},null,{"$f":"IF(Кроссворд!M14=Анализ_2!M14,1,0)","v":0}]
[null,null,null,null,null,null,null,null,"Г",null,"Ф",null,"И",null,null,null,null,null,null,null,null,null,null,null,null,null,null,null,null,{"$f":"IF(Кроссворд!I15=Анализ_2!I15,1,0)","v":0},null,{"$f":"IF(Кроссворд!K15=Анализ_2!K15,1,0)","v":0},null,{"$f":"IF(Кроссворд!M15=Анализ_2!M15,1,0)","v":0}]
[null,null,null,null,null,null,null,null,"И",null,"И",null,"Я",null,null,null,"П",null,null,null,null,null,null,null,null,null,null,null,null,{"$f":"IF(Кроссворд!I16=Анализ_2!I16,1,0)","v":0},null,{"$f":"IF(Кроссворд!K16=Анализ_2!K16,1,0)","v":0},null,{"$f":"IF(Кроссворд!M16=Анализ_2!M16,1,0)","v":0},null,null,null,{"$f":"IF(Кроссворд!Q16=Анализ_2!Q16,1,0)","v":0}]
[null,null,null,null,null,null,null,null,"Я",null,"К",null,null,null,null,null,"А",null,null,null,null,null,null,null,null,null,null,null,null,{"$f":"IF(Кроссворд!I17=Анализ_2!I17,1,0)","v":0},null,{"$f":"IF(Кроссворд!K17=Анализ_2!K17,1,0)","v":0},null,null,null,null,null,{"$f":"IF(Кроссворд!Q17=Анализ_2!Q17,1,0)","v":0}]
[null,null,null,null,null,null,null,null,null,null,"А",null,null,null,null,null,"Р",null,null,null,null,null,null,null,null,null,null,null,null,null,null,{"$f":"IF(Кроссворд!K18=Анализ_2!K18,1,0)","v":0},null,null,null,null,null,{"$f":"IF(Кроссворд!Q18=Анализ_2!Q18,1,0)","v":0}]
[null,null,"К","О","Н","Ф","И","Д","Е","Н","Ц","И","А","Л","Ь","Н","О","С","Т","Ь",null,null,null,{"$f":"IF(Кроссворд!C19=Анализ_2!C19,1,0)","v":0},{"$f":"IF(Кроссворд!D19=Анализ_2!D19,1,0)","v":0},{"$f":"IF(Кроссворд!E19=Анализ_2!E19,1,0)","v":0},{"$f":"IF(Кроссворд!F19=Анализ_2!F19,1,0)","v":0},{"$f":"IF(Кроссворд!G19=Анализ_2!G19,1,0)","v":0},{"$f":"IF(Кроссворд!H19=Анализ_2!H19,1,0)","v":0},{"$f":"IF(Кроссворд!I19=Анализ_2!I19,1,0)","v":0},{"$f":"IF(Кроссворд!J19=Анализ_2!J19,1,0)","v":0},{"$f":"IF(Кроссворд!K19=Анализ_2!K19,1,0)","v":0},{"$f":"IF(Кроссворд!L19=Анализ_2!L19,1,0)","v":0},{"$f":"IF(Кроссворд!M19=Анализ_2!M19,1,0)","v":0},{"$f":"IF(Кроссворд!N19=Анализ_2!N19,1,0)","v":0},{"$f":"IF(Кроссворд!O19=Анализ_2!O19,1,0)","v":0},{"$f":"IF(Кроссворд!P19=Анализ_2!P19,1,0)","v":0},{"$f":"IF(Кроссворд!Q19=Анализ_2!Q19,1,0)","v":0},{"$f":"IF(Кроссворд!R19=Анализ_2!R19,1,0)","v":0},{"$f":"IF(Кроссворд!S19=Анализ_2!S19,1,0)","v":0},{"$f":"IF(Кроссворд!T19=Анализ_2!T19,1,0)","v":0}]
[null,null,null,null,null,null,null,null,null,null,"И",null,null,null,null,null,"Л",null,null,null,null,null,null,null,null,null,null,null,null,null,null,{"$f":"IF(Кроссворд!K20=Анализ_2!K20,1,0)","v":0},null,null,null,null,null,{"$f":"IF(Кроссворд!Q20=Анализ_2!Q20,1,0)","v":0}]
[null,null,null,null,null,null,null,null,null,null,"Я",null,null,null,null,null,"Ь",null,null,null,null,null,null,null,null,null,null,null,null,null,null,{"$f":"IF(Кроссворд!K21=Анализ_2!K21,1,0)","v":0},null,null,null,null,null,{"$f":"IF(Кроссворд!Q21=Анализ_2!Q21,1,0)","v":0}]
[]
[]
[null,null,null,null,null,null,null,null,null,null,null,null,null,null,null,null,"Правильно",null,null,null,null,{"$f":"SUM(V3:AP22)","v":0}]
[null,null,null,null,null,null,null,null,null,null,null,null,null,null,null,null,"Оценка",null,null,null,null,{"$f":"IF(V24>76,5,IF(V24>63,4,IF(V24>42,3,2)))","v":2}]

{"sheet":"Результат","index":4,"n_rows":10,"n_cols":8,"rows_kept":10,"cut":false,"hidden":false,"merged":[[0,3,0,4],[7,5,7,6],[8,5,8,6],[9,5,9,6]]}
[null,null,null,"Результат"]
[]
[null,null,null,"Фамилия",{"$f":"Регистрация!E4","v":0}]
[null,null,null,"Имя",{"$f":"Регистрация!E5","v":0}]
[null,null,null,"Класс",{"$f":"Регистрация!E6","v":0}]
[]
[]
[]
[null,null,null,null,null,"Оценка",null,{"$f":"Анализ_1!K6","v":2}]
[null,null,null,null,null,"Правильно",null,{"$f":"Анализ_1!K5","v":0}]